fUSD/lending_fUSD_20240528
["ID","MTS","AMOUNT","RATE_DAILY","PERIOD"]
[328142455,1716930696619,-585.71,0.00030958,2]
[328142456,1716930696628,-1137.45,0.00030958,2]
[328142457,1716930696637,-539.51,0.00030958,2]
[328142458,1716930696646,-1448.06,0.00030958,2]
[328142459,1716930696655,-2302.76,0.00030958,2]
[328142460,1716930696667,-3336.18,0.00030958,2]
[328142461,1716930696676,-500.0,0.00030958,2]
[328142462,1716930696685,-1236.12,0.00030958,2]
[328142463,1716930696694,-500.0,0.00030958,2]
[328142464,1716930696703,-500.0,0.00030958,2]
[328142465,1716930696712,-885.34,0.00030958,2]
[328142466,1716930696721,-602.93,0.00030958,2]
[328142467,1716930696731,-1036.79,0.00030958,2]
[328142468,1716930696744,-13852.98,0.00030958,2]
[328142469,1716930696753,-1313.69,0.00030958,2]
[328142470,1716930696762,-1592.22,0.00030958,2]
[328142471,1716930696771,-916.61,0.00030958,2]
[328142472,1716930696779,-1158.67,0.00030958,2]
[328142473,1716930696788,-2650.73,0.00030958,2]
[328142474,1716930696797,-500.0,0.00030958,2]
[328142475,1716930696806,-4639.4,0.00030958,2]
[328142476,1716930696816,-720.94,0.00030958,2]
[328142477,1716930696825,-850.51,0.00030958,2]
[328142478,1716930696834,-1212.71,0.00030958,2]
[328142479,1716930696843,-1077.58,0.00030958,2]
[328142480,1716930696852,-1305.79,0.00030958,2]
[328142481,1716930696861,-564.13,0.00030958,2]
[328142482,1716930696873,-789.13,0.00030958,2]
[328142483,1716930696882,-928.91,0.00030958,2]
[328142484,1716930696891,-500.0,0.00030958,2]
[328142485,1716930696901,-373.14622576,0.00030958,2]
[328142486,1716930696910,-920.12,0.00030958,2]
[328142487,1716930696919,-881.35,0.00030958,2]
[328142488,1716930696928,-717.42,0.00030958,2]
[328142489,1716930696937,-500.0,0.00030958,2]
[328142490,1716930696947,-654.73,0.00030958,2]
[328142491,1716930696956,-500.0,0.00030958,2]
[328142492,1716930696966,-3338.18,0.00030958,2]
[328142493,1716930696975,-445.05586609,0.00030958,2]
[328142494,1716930696985,-500.0,0.00030958,2]
[328142495,1716930696995,-1966.13,0.00030958,2]
[328142496,1716930697004,-570.33,0.00030958,2]
[328142497,1716930697013,-500.0,0.00030958,2]
[328142498,1716930697022,-500.0,0.00030958,2]
[328142499,1716930697032,-500.0,0.00030958,2]
[328142500,1716930697041,-1420.49,0.00030958,2]
[328142501,1716930697051,-1625.97,0.00030958,2]
[328142502,1716930697060,-500.0,0.00030958,2]
[328142503,1716930697070,-647.0,0.00030958,2]
[328142504,1716930697080,-500.0,0.00030958,2]
[328142505,1716930697090,-1101.55,0.00030958,2]
[328142506,1716930697099,-5271.34,0.00030958,2]
[328142507,1716930697109,-896.38,0.00030958,2]
[328142508,1716930697118,-4085.09,0.00030958,2]
[328142509,1716930697128,-500.0,0.00030958,2]
[328142510,1716930697137,-3085.09,0.00030958,2]
[328142511,1716930697147,-500.0,0.00030958,2]
[328142512,1716930697157,-1027.97,0.00030958,2]
[328142513,1716930697166,-678.18,0.00030958,2]
[328142514,1716930697176,-607.8,0.00030958,2]
[328142515,1716930697186,-500.0,0.00030958,2]
[328142516,1716930697195,-707.12,0.00030958,2]
[328142517,1716930697205,-2974.94,0.00030958,2]
[328142518,1716930697215,-1217.15,0.00030958,2]
[328142519,1716930697224,-1190.26,0.00030958,2]
[328142520,1716930697234,-592.19,0.00030958,2]
[328142521,1716930697243,-282.79569444,0.00030958,2]
[328142522,1716930697252,-4371.46,0.00030958,2]
[328142523,1716930697262,-1044.37,0.00030958,2]
[328142524,1716930697272,-500.0,0.00030958,2]
[328142525,1716930697281,-513.35,0.00030958,2]
[328142526,1716930697291,-1474.98,0.00030958,2]
[328142527,1716930697300,-500.0,0.00030958,2]
[328142528,1716930697310,-520.72,0.00030958,2]
[328142529,1716930697324,-3176.31,0.00030958,2]
[328142530,1716930697333,-687.58,0.00030958,2]
[328142531,1716930697343,-3513.06,0.00030958,2]
[328142532,1716930697354,-576.75,0.00030958,2]
[328142533,1716930697364,-705.7,0.00030958,2]
[328142534,1716930697373,-378.61365068,0.00030958,2]
[328142535,1716930697383,-1619.86322328,0.0003098,7]
[328142536,1716930697394,-1500.0,0.00030985,2]
[328142537,1716930697403,-200.0,0.00030991,120]
[328142538,1716930697413,-8114.63712346,0.00031,5]
[328142539,1716930697422,-1000.0,0.00031,2]
[328142540,1716930697431,-15056.0,0.00031,7]
[328142541,1716930697441,-882879.07,0.00031,5]
[328142542,1716930697451,-949.94,0.00031,2]
[328142543,1716930697460,-155.0,0.00031,4]
[328142544,1716930697469,-1200.0,0.00031,2]
[328142545,1716930697479,-213.811468,0.00031,7]
[328142546,1716930697489,-282.644554,0.00031,7]
[328142547,1716930697499,-282.644554,0.00031,7]
[328142548,1716930697509,-268.062551,0.00031,7]
[328142549,1716930697518,-152.079673,0.00031,7]
[328142550,1716930697528,-152.079673,0.00031,7]
[328142551,1716930697537,-306.417667,0.00031,7]
[328142552,1716930697547,-306.417667,0.00031,7]
[328142553,1716930697556,-151.0,0.00031,7]
[328142554,1716930697565,-151.0,0.00031,7]
[328142555,1716930697575,-151.0,0.00031,7]
[328142556,1716930697585,-3617.882254,0.00031,7]
[328142557,1716930697594,-3617.882254,0.00031,7]
[328142558,1716930697604,-291.267652,0.00031,7]
[328142559,1716930697613,-291.267652,0.00031,7]
[328142560,1716930697623,-151.0,0.00031,7]
[328142561,1716930697633,-500.0,0.00031042,10]
[328142562,1716930697643,-152.67997745,0.00031129,7]
[328142563,1716930697652,-157.052905,0.00031148,40]
[328142564,1716930697662,-2985.26352396,0.00031152,7]
[328142565,1716930697672,-924.31299125,0.00031152,7]
[328142566,1716930697681,-150.0,0.000312,6]
[328142567,1716930697691,-1500.0,0.00031217,2]
[328142568,1716930697700,-150.0,0.00031221,7]
[328142569,1716930697709,-500.0,0.00031232,2]
[328142570,1716930697718,-500.0,0.00031232,2]
[328142571,1716930697727,-909.32,0.00031232,2]
[328142572,1716930697737,-500.0,0.00031232,2]
[328142573,1716930697746,-594.79,0.00031232,2]
[328142574,1716930697756,-569.9,0.00031232,2]
[328142575,1716930697765,-500.0,0.00031232,2]
[328142576,1716930697775,-500.0,0.00031232,2]
[328142577,1716930697784,-500.0,0.00031232,2]
[328142578,1716930697795,-967.79,0.00031232,2]
[328142579,1716930697805,-500.0,0.00031232,2]
[328142580,1716930697814,-1363.1,0.00031232,2]
[328142581,1716930697824,-667.3,0.00031232,2]
[328142582,1716930697834,-500.0,0.00031232,2]
[328142583,1716930697962,-500.0,0.00031232,2]
[328142584,1716930697972,-813.82,0.00031232,2]
[328142585,1716930697982,-670.95,0.00031232,2]
[328142586,1716930697991,-500.0,0.00031232,2]
[328142587,1716930698003,-682.1,0.00031232,2]
[328142588,1716930698012,-613.37,0.00031232,2]
[328142589,1716930698022,-870.5,0.00031232,2]
[328142590,1716930698031,-500.0,0.00031232,2]
[328142591,1716930698041,-746.34,0.00031232,2]
[328142592,1716930698051,-500.0,0.00031232,2]
[328142593,1716930698061,-500.0,0.00031232,2]
[328142594,1716930698072,-613.05,0.00031232,2]
[328142595,1716930698082,-758.6,0.00031232,2]
[328142596,1716930698091,-500.0,0.00031232,2]
[328142597,1716930698101,-500.0,0.00031232,2]
[328142598,1716930698111,-527.93,0.00031232,2]
[328142599,1716930698121,-535.29,0.00031232,2]
[328142600,1716930698130,-891.34,0.00031232,2]
[328142601,1716930698139,-556.26,0.00031232,2]
[328142602,1716930698149,-500.0,0.00031232,2]
[328142603,1716930698159,-617.75,0.00031232,2]
[328142604,1716930698168,-500.0,0.00031232,2]
[328142605,1716930698177,-655.52,0.00031232,2]
[328142606,1716930698186,-982.73,0.00031232,2]
[328142607,1716930698195,-500.0,0.00031232,2]
[328142608,1716930698205,-500.0,0.00031232,2]
[328142609,1716930698214,-293.97235609,0.00031232,2]
[328142610,1716930698223,-879.75,0.00031232,2]
[328142611,1716930698232,-500.0,0.00031232,2]
[328142612,1716930698242,-500.0,0.00031232,2]
[328142613,1716930698251,-598.93,0.00031232,2]
[328142614,1716930698260,-607.01,0.00031232,2]
[328142615,1716930698270,-869.48,0.00031232,2]
[328142616,1716930698280,-500.0,0.00031232,2]
[328142617,1716930698289,-515.25,0.00031232,2]
[328142618,1716930698299,-500.0,0.00031232,2]
[328142619,1716930698309,-501.39,0.00031232,2]
[328142620,1716930698324,-500.0,0.00031232,2]
[328142621,1716930698334,-500.0,0.00031232,2]
[328142622,1716930698343,-500.0,0.00031232,2]
[328142623,1716930698355,-500.0,0.00031232,2]
[328142624,1716930698365,-500.0,0.00031232,2]
[328142625,1716930698374,-500.0,0.00031232,2]
[328142626,1716930698384,-1260.25,0.00031232,2]
[328142627,1716930698395,-500.0,0.00031232,2]
[328142628,1716930698405,-500.0,0.00031232,2]
[328142629,1716930698414,-554.17,0.00031232,2]
[328142630,1716930698423,-1185.96,0.00031232,2]
[328142631,1716930698434,-500.0,0.00031232,2]
[328142632,1716930698443,-172.94,0.00031232,2]
[328142633,1716930698453,-500.0,0.00031232,2]
[328142634,1716930698462,-500.0,0.00031232,2]
[328142635,1716930698472,-500.0,0.00031232,2]
[328142636,1716930698481,-500.0,0.00031232,2]
[328142637,1716930698491,-222.20036598,0.00031232,2]
[328142638,1716930698500,-580.57808031,0.00031232,2]
[328142639,1716930698510,-512.07,0.00031232,2]
[328142640,1716930698520,-500.0,0.00031232,2]
[328142641,1716930698529,-287.758887,0.00031232,2]
[328142642,1716930698539,-500.0,0.00031232,2]
[328142643,1716930698548,-577.36,0.00031232,2]
[328142644,1716930698557,-500.0,0.00031232,2]
[328142645,1716930698567,-544.23,0.00031232,2]
[328142646,1716930698577,-917.76,0.00031232,2]
[328142647,1716930698587,-500.0,0.00031232,2]
[328142648,1716930698597,-500.0,0.00031232,2]
[328142649,1716930698606,-715.45,0.00031232,2]
[328142650,1716930698616,-504.89,0.00031232,2]
[328142651,1716930698625,-500.0,0.00031232,2]
[328142652,1716930698635,-500.0,0.00031232,2]
[328142653,1716930698645,-500.0,0.00031232,2]
[328142654,1716930698655,-500.0,0.00031232,2]
[328142655,1716930698664,-611.87,0.00031232,2]
[328142656,1716930698674,-824.89,0.00031232,2]
[328142657,1716930698684,-500.0,0.00031232,2]
[328142658,1716930698693,-500.0,0.00031232,2]
[328142659,1716930698702,-739.81,0.00031232,2]
[328142660,1716930698712,-500.0,0.00031232,2]
[328142661,1716930698722,-500.0,0.00031232,2]
[328142662,1716930698732,-1320.63,0.00031232,2]
[328142663,1716930698743,-1793.48,0.00031232,2]
[328142664,1716930698752,-1192.64,0.00031232,2]
[328142665,1716930698762,-500.0,0.00031232,2]
[328142666,1716930698771,-850.59,0.00031232,2]
[328142667,1716930698781,-550.9,0.00031232,2]
[328142668,1716930698790,-656.92,0.00031232,2]
[328142669,1716930698800,-9315.09,0.00031232,2]
[328142670,1716930698810,-806.35,0.00031232,2]
[328142671,1716930698820,-500.0,0.00031232,2]
[328142672,1716930698830,-15327.51,0.00031232,2]
[328142673,1716930698840,-635.68,0.00031232,2]
[328142674,1716930698849,-3419.04,0.00031232,2]
[328142675,1716930698860,-1271.68,0.00031232,2]
[328142676,1716930698869,-525.9,0.00031232,2]
[328142677,1716930698879,-1237.95,0.00031232,2]
[328142678,1716930698888,-5036.02,0.00031232,2]
[328142679,1716930698898,-2402.16,0.00031232,2]
[328142680,1716930698907,-583.74,0.00031232,2]
[328142681,1716930698917,-500.0,0.00031232,2]
[328142682,1716930698927,-1081.68,0.00031232,2]
[328142683,1716930698936,-2135.42,0.00031232,2]
[328142684,1716930698945,-500.0,0.00031232,2]
[328142685,1716930698954,-500.0,0.00031232,2]
[328142686,1716930698964,-500.0,0.00031232,2]
[328142687,1716930698973,-500.0,0.00031232,2]
[328142688,1716930698982,-874.24,0.00031232,2]
[328142689,1716930698992,-832.12,0.00031232,2]
[328142690,1716930699001,-889.71,0.00031232,2]
[328142691,1716930699011,-1494.87,0.00031232,2]
[328142692,1716930699021,-588.22,0.00031232,2]
[328142693,1716930699031,-753.43,0.00031232,2]
[328142694,1716930699040,-500.0,0.00031232,2]
[328142695,1716930699049,-656.49,0.00031232,2]
[328142696,1716930699059,-1040.11,0.00031232,2]
[328142697,1716930699068,-5379.01,0.00031232,2]
[328142698,1716930699078,-1151.4,0.00031232,2]
[328142699,1716930699087,-657.54,0.00031232,2]
[328142700,1716930699096,-2503.88,0.00031232,2]
[328142701,1716930699106,-500.0,0.00031232,2]
[328142702,1716930699115,-500.0,0.00031232,2]
[328142703,1716930699124,-992.19,0.00031232,2]
[328142704,1716930699133,-523.58,0.00031232,2]
[328142705,1716930699143,-646.80970443,0.00031232,2]
[328142706,1716930699153,-591.51,0.00031232,2]
[328142707,1716930699164,-2469.11,0.00031232,2]
[328142708,1716930699175,-604.6,0.00031232,2]
[328142709,1716930699185,-500.0,0.00031232,2]
[328142710,1716930699196,-500.0,0.00031232,2]
[328142711,1716930699206,-1881.26,0.00031232,2]
[328142712,1716930699216,-1270.47,0.00031232,2]
[328142713,1716930699226,-1071.3,0.00031232,2]
[328142714,1716930699236,-8259.77,0.00031232,2]
[328142715,1716930699247,-500.0,0.00031232,2]
[328142716,1716930699256,-1123.23,0.00031232,2]
[328142717,1716930699266,-2563.92,0.00031232,2]
[328142718,1716930699277,-518.53112798,0.00031232,2]
[328142719,1716930699286,-1027.88,0.00031232,2]
[328142720,1716930699296,-772.72,0.00031232,2]
[328142721,1716930699305,-887.31,0.00031232,2]
[328142722,1716930699322,-914.87,0.00031232,2]
[328142723,1716930699331,-4971.2,0.00031232,2]
[328142724,1716930699340,-1127.13,0.00031232,2]
[328142725,1716930699349,-571.26,0.00031232,2]
[328142726,1716930699360,-590.27,0.00031232,2]
[328142727,1716930699371,-500.0,0.00031232,2]
[328142728,1716930699381,-606.32,0.00031232,2]
[328142729,1716930699392,-824.0,0.00031232,2]
[328142730,1716930699402,-500.0,0.00031232,2]
[328142731,1716930699412,-853.64,0.00031232,2]
[328142732,1716930699422,-745.85,0.00031232,2]
[328142733,1716930699433,-585.71,0.00031232,2]
[328142734,1716930699442,-1137.45,0.00031232,2]
[328142735,1716930699452,-539.51,0.00031232,2]
[328142736,1716930699462,-1448.06,0.00031232,2]
[328142737,1716930699472,-2302.76,0.00031232,2]
[328142738,1716930699482,-3336.18,0.00031232,2]
[328142739,1716930699492,-500.0,0.00031232,2]
[328142740,1716930699502,-1236.12,0.00031232,2]
[328142741,1716930699511,-500.0,0.00031232,2]
[328142742,1716930699521,-500.0,0.00031232,2]
[328142743,1716930699530,-885.34,0.00031232,2]
[328142744,1716930699540,-602.93,0.00031232,2]
[328142745,1716930699550,-1036.79,0.00031232,2]
[328142746,1716930699559,-13852.98,0.00031232,2]
[328142747,1716930699570,-1313.69,0.00031232,2]
[328142748,1716930699579,-1592.22,0.00031232,2]
[328142749,1716930699588,-916.61,0.00031232,2]
[328142750,1716930699597,-1158.67,0.00031232,2]
[328142751,1716930699606,-2650.73,0.00031232,2]
[328142752,1716930699616,-500.0,0.00031232,2]
[328142753,1716930699625,-4639.4,0.00031232,2]
[328142754,1716930699635,-720.94,0.00031232,2]
[328142755,1716930699645,-850.51,0.00031232,2]
[328142756,1716930699654,-1212.71,0.00031232,2]
[328142757,1716930699663,-1077.58,0.00031232,2]
[328142758,1716930699673,-1305.79,0.00031232,2]
[328142759,1716930699682,-564.13,0.00031232,2]
[328142760,1716930699808,-789.13,0.00031232,2]
[328142761,1716930699819,-928.91,0.00031232,2]
[328142762,1716930699829,-500.0,0.00031232,2]
[328142763,1716930699838,-920.12,0.00031232,2]
[328142764,1716930699848,-881.35,0.00031232,2]
[328142765,1716930699859,-717.42,0.00031232,2]
[328142766,1716930699868,-500.0,0.00031232,2]
[328142767,1716930699878,-654.73,0.00031232,2]
[328142768,1716930699887,-500.0,0.00031232,2]
[328142769,1716930699897,-3338.18,0.00031232,2]
[328142770,1716930699907,-500.0,0.00031232,2]
[328142771,1716930699917,-1966.13,0.00031232,2]
[328142772,1716930699927,-570.33,0.00031232,2]
[328142773,1716930699937,-500.0,0.00031232,2]
[328142774,1716930699947,-500.0,0.00031232,2]
[328142775,1716930699957,-500.0,0.00031232,2]
[328142776,1716930699967,-1420.49,0.00031232,2]
[328142777,1716930699977,-1625.97,0.00031232,2]
[328142778,1716930699987,-462.08481108,0.00031232,2]
[328142779,1716930699997,-647.0,0.00031232,2]
[328142780,1716930700007,-500.0,0.00031232,2]
[328142781,1716930700017,-1101.55,0.00031232,2]
[328142782,1716930700026,-5271.34,0.00031232,2]
[328142783,1716930700036,-896.38,0.00031232,2]
[328142784,1716930700046,-4085.09,0.00031232,2]
[328142785,1716930700056,-152.20325376,0.00031232,2]
[328142786,1716930700065,-3085.09,0.00031232,2]
[328142787,1716930700076,-500.0,0.00031232,2]
[328142788,1716930700086,-1027.97,0.00031232,2]
[328142789,1716930700096,-678.18,0.00031232,2]
[328142790,1716930700106,-607.8,0.00031232,2]
[328142791,1716930700116,-500.0,0.00031232,2]
[328142792,1716930700127,-707.12,0.00031232,2]
[328142793,1716930700136,-2974.94,0.00031232,2]
[328142794,1716930700146,-1217.15,0.00031232,2]
[328142795,1716930700156,-1190.26,0.00031232,2]
[328142796,1716930700166,-592.19,0.00031232,2]
[328142797,1716930700176,-4371.46,0.00031232,2]
[328142798,1716930700185,-1044.37,0.00031232,2]
[328142799,1716930700195,-500.0,0.00031232,2]
[328142800,1716930700205,-513.35,0.00031232,2]
[328142801,1716930700215,-1474.98,0.00031232,2]
[328142802,1716930700226,-500.0,0.00031232,2]
[328142803,1716930700236,-3176.31,0.00031232,2]
[328142804,1716930700246,-687.58,0.00031232,2]
[328142805,1716930700256,-3513.06,0.00031232,2]
[328142806,1716930700266,-576.75,0.00031232,2]
[328142807,1716930700275,-705.7,0.00031232,2]
[328142808,1716930700285,-166.66666666,0.00031249,7]
[328142809,1716930700294,-1500.0,0.00031257,2]
[328142810,1716930700305,-1674.213546,0.0003128,11]
[328142811,1716930700319,-1000.0,0.000313,11]
[328142812,1716930700329,-1000.0,0.0003132,11]
[328142813,1716930700339,-2055.01543552,0.00031328,31]
[328142814,1716930700349,-1500.0,0.00031328,2]
[328142815,1716930700359,-1000.0,0.0003134,11]
[328142816,1716930700368,-150.0,0.00031341,7]
[328142817,1716930700377,-1000.0,0.0003136,11]
[328142818,1716930700387,-1000.0,0.0003138,11]
[328142819,1716930700398,-1000.0,0.00031391,120]
[328142820,1716930700409,-12916.73429651,0.00031397,2]
[328142821,1716930700419,-524.47,0.000314,2]
[328142822,1716930700428,-949.94,0.000314,2]
[328142823,1716930700438,-524.47,0.000314,2]
[328142824,1716930700448,-1000.0,0.000314,11]
[328142825,1716930700457,-3212.95404719,0.000314,2]
[328142826,1716930700467,-183.58384251,0.000314,2]
[328142827,1716930700476,-900.28304544,0.000314,2]
[328142828,1716930700486,-166.73621259,0.00031401,7]
[328142829,1716930700497,-179.39058927,0.00031413,7]
[328142830,1716930700506,-1000.0,0.0003142,11]
[328142831,1716930700516,-1500.0,0.00031423,2]
[328142832,1716930700527,-152.67997745,0.00031434,7]
[328142833,1716930700536,-1000.0,0.0003144,11]
[328142834,1716930700546,-157.052905,0.00031448,40]
[328142835,1716930700556,-155.09271604,0.00031453,7]
[328142836,1716930700566,-1000.0,0.0003146,11]
[328142837,1716930700576,-1000.0,0.0003148,11]
[328142838,1716930700586,-300000.0,0.00031495,4]
[328142839,1716930700595,-714788.70355772,0.00031497,4]
[328142840,1716930700605,-282.644554,0.00031497,7]
[328142841,1716930700616,-282.644553,0.00031497,7]
[328142842,1716930700625,-268.062551,0.00031497,7]
[328142843,1716930700635,-268.062553,0.00031497,7]
[328142844,1716930700644,-152.079673,0.00031497,7]
[328142845,1716930700653,-152.079669,0.00031497,7]
[328142846,1716930700663,-306.417667,0.00031497,7]
[328142847,1716930700672,-306.417659,0.00031497,7]
[328142848,1716930700682,-151.0,0.00031497,7]
[328142849,1716930700691,-151.0,0.00031497,7]
[328142850,1716930700701,-151.0,0.00031497,7]
[328142851,1716930700711,-3617.882254,0.00031497,7]
[328142852,1716930700721,-3617.882254,0.00031497,7]
[328142853,1716930700730,-291.267652,0.00031497,7]
[328142854,1716930700740,-291.267652,0.00031497,7]
[328142855,1716930700750,-151.0,0.00031497,7]
[328142856,1716930700759,-268.32530534,0.00031498,4]
[328142857,1716930700768,-262.11755421,0.00031498,4]
[328142858,1716930700778,-155.16197257,0.00031498,4]
[328142859,1716930700787,-155.0,0.00031498,4]
[328142860,1716930700796,-155.000001,0.00031498,2]
[328142861,1716930700806,-167.79510235,0.00031498,4]
[328142862,1716930700815,-3092.38465923,0.00031498,4]
[328142863,1716930700826,-317.14821163,0.00031499,4]
[328142864,1716930700836,-200.0,0.00031499,120]
[328142865,1716930700846,-1916593.3380075,0.000315,5]
[328142866,1716930700855,-7293.77214156,0.000315,2]
[328142867,1716930700865,-689.0,0.000315,4]
[328142868,1716930700874,-682.0,0.000315,4]
[328142869,1716930700884,-188.349035,0.000315,7]
[328142870,1716930700894,-151.0,0.000315,7]
[328142871,1716930700904,-328.38572993,0.000315,10]
[328142872,1716930700913,-1000.0,0.000315,11]
[328142873,1716930700923,-3617.882254,0.000315,7]
[328142874,1716930700933,-3617.882261,0.000315,7]
[328142875,1716930700942,-291.267652,0.000315,7]
[328142876,1716930700952,-291.267642,0.000315,7]
[328142877,1716930700961,-151.0,0.000315,7]
[328142878,1716930700971,-303.28,0.000315,2]
[328142879,1716930700980,-150.0,0.00031502,7]
[328142880,1716930700990,-500.0,0.00031506,2]
[328142881,1716930701000,-316.93477923,0.00031506,2]
[328142882,1716930701010,-909.32,0.00031506,2]
[328142883,1716930701019,-500.0,0.00031506,2]
[328142884,1716930701029,-594.79,0.00031506,2]
[328142885,1716930701039,-569.9,0.00031506,2]
[328142886,1716930701048,-500.0,0.00031506,2]
[328142887,1716930701058,-500.0,0.00031506,2]
[328142888,1716930701068,-500.0,0.00031506,2]
[328142889,1716930701078,-967.79,0.00031506,2]
[328142890,1716930701087,-500.0,0.00031506,2]
[328142891,1716930701097,-1363.1,0.00031506,2]
[328142892,1716930701106,-667.3,0.00031506,2]
[328142893,1716930701115,-500.0,0.00031506,2]
[328142894,1716930701126,-425.45,0.00031506,2]
[328142895,1716930701134,-813.82,0.00031506,2]
[328142896,1716930701144,-670.95,0.00031506,2]
[328142897,1716930701153,-500.0,0.00031506,2]
[328142898,1716930701163,-682.1,0.00031506,2]
[328142899,1716930701173,-613.37,0.00031506,2]
[328142900,1716930701182,-870.5,0.00031506,2]
[328142901,1716930701191,-500.0,0.00031506,2]
[328142902,1716930701202,-746.34,0.00031506,2]
[328142903,1716930701211,-236.00231715,0.00031506,2]
[328142904,1716930701222,-500.0,0.00031506,2]
[328142905,1716930701231,-613.05,0.00031506,2]
[328142906,1716930701241,-758.6,0.00031506,2]
[328142907,1716930701251,-500.0,0.00031506,2]
[328142908,1716930701260,-500.0,0.00031506,2]
[328142909,1716930701269,-527.93,0.00031506,2]
[328142910,1716930701280,-535.29,0.00031506,2]
[328142911,1716930701290,-891.34,0.00031506,2]
[328142912,1716930701299,-556.26,0.00031506,2]
[328142913,1716930701308,-500.0,0.00031506,2]
[328142914,1716930701322,-617.75,0.00031506,2]
[328142915,1716930701332,-500.0,0.00031506,2]
[328142916,1716930701341,-655.52,0.00031506,2]
[328142917,1716930701350,-982.73,0.00031506,2]
[328142918,1716930701362,-500.0,0.00031506,2]
[328142919,1716930701371,-500.0,0.00031506,2]
[328142920,1716930701381,-879.75,0.00031506,2]
[328142921,1716930701392,-500.0,0.00031506,2]
[328142922,1716930701402,-500.0,0.00031506,2]
[328142923,1716930701412,-598.93,0.00031506,2]
[328142924,1716930701422,-607.01,0.00031506,2]
[328142925,1716930701431,-869.48,0.00031506,2]
[328142926,1716930701441,-590.36617144,0.00031506,2]
[328142927,1716930701450,-515.25,0.00031506,2]
[328142928,1716930701460,-500.0,0.00031506,2]
[328142929,1716930701470,-501.39,0.00031506,2]
[328142930,1716930701479,-500.0,0.00031506,2]
[328142931,1716930701488,-500.0,0.00031506,2]
[328142932,1716930701497,-500.0,0.00031506,2]
[328142933,1716930701507,-500.0,0.00031506,2]
[328142934,1716930701516,-500.0,0.00031506,2]
[328142935,1716930701525,-500.0,0.00031506,2]
[328142936,1716930701535,-1260.25,0.00031506,2]
[328142937,1716930701544,-500.0,0.00031506,2]
[328142938,1716930701553,-500.0,0.00031506,2]
[328142939,1716930701563,-554.17,0.00031506,2]
[328142940,1716930701574,-1185.96,0.00031506,2]
[328142941,1716930701583,-159.95187161,0.00031506,2]
[328142942,1716930701593,-172.94,0.00031506,2]
[328142943,1716930701602,-500.0,0.00031506,2]
[328142944,1716930701612,-267.31132969,0.00031506,2]
[328142945,1716930701621,-500.0,0.00031506,2]
[328142946,1716930701632,-512.07,0.00031506,2]
[328142947,1716930701642,-500.0,0.00031506,2]
[328142948,1716930701652,-500.0,0.00031506,2]
[328142949,1716930701661,-577.36,0.00031506,2]
[328142950,1716930701671,-500.0,0.00031506,2]
[328142951,1716930701681,-544.23,0.00031506,2]
[328142952,1716930701690,-917.76,0.00031506,2]
[328142953,1716930701701,-500.0,0.00031506,2]
[328142954,1716930701710,-500.0,0.00031506,2]